Cogmind - Beta 16.1 @@@ ROGUE MODE // 2026.03.12 @ 23:15:11 Player: IDRpheonix Result: Destroyed by S-10 Pest with Light Assault Rifle Performance ------------- Evolutions (2) 1000 Regions Visited (4) 800 Robots Destroyed (58) 290 Value Destroyed (1645) 1645 Prototype IDs (6) 120 Alien Tech Used (0) 0 Bonus (588) 588 TOTAL SCORE: 4443 Bonus ------- High Alert Combat Kills 133 Follower Combat Kills 455 Cogmind --------- Core Integrity 0/550 Matter 211/300 Energy 99/100 System Corruption 1% Temperature Hot (244) Movement Flying (1635) Ox20 Location -8/Materials Parts ------- > --- POWER (1) -------- (None) > --- PROPULSION (2) --- VTOL Module > --- UTILITY (4) ------ Heat Sink Huge Storage Unit > --- WEAPON (4) ------- Heavy Assault Rifle > --- INVENTORY (25) --- Ion Engine Light Deuterium Engine Light Nuclear Core Compact Wheel VTOL Module VTOL Module VTOL Module Visual Processing Unit Targeting Computer Propulsion Shielding Propulsion Shielding Utility Shielding Light Armor Plating Shield Generator Shield Generator Precision Rocket Launcher Peak State ------------ > --- POWER ------------ Cooled Ion Engine > --- PROPULSION ------- Wheel Wheel > --- UTILITY ---------- Improved Heat Sink Improved Heat Sink Huge Storage Unit Shield Generator > --- WEAPON ----------- Advanced Beam Rifle Advanced Beam Rifle Advanced Beam Cannon Heavy Assault Rifle > --- INVENTORY -------- Ion Engine Improved Ion Engine Improved Ion Engine Light Deuterium Engine Light Nuclear Core Compact Wheel VTOL Module VTOL Module VTOL Module VTOL Module Heat Sink Visual Processing Unit Targeting Computer Propulsion Shielding Propulsion Shielding Utility Shielding Light Armor Plating Light Armor Plating Shield Generator Shield Generator Advanced Beam Cannon Advanced Beam Cannon Ion Cannon Heavy Assault Rifle Precision Rocket Launcher [Rating: 32] Favorites ----------- Power Cooled Ion Engine Engine Cooled Ion Engine Propulsion Wheel Treads Light Treads Leg Improved Aluminum Leg Wheel Wheel Flight Unit VTOL Module Utility Huge Storage Unit Device Improved Heat Sink Storage Huge Storage Unit Protection Propulsion Shielding Weapon Advanced Beam Cannon Energy Gun Improved EM Shotgun Energy Cannon Advanced Beam Cannon Ballistic Gun Assault Rifle Launcher Precision Rocket Launcher Build | -11 -10 -9 -9 -8 ------- Run | Yrd Mat Mat Sto Mat Slots Evolved 4 | . . 2 . 2 Power . | . . . . . Propulsion . | . . . . . Utility 2 | . . . . 2 Weapon 2 | . . 2 . . Parts Attached 42 | 6 7 6 8 15 Power 5 | 1 . 1 2 1 Engine 5 | 1 . 1 2 1 Core . | . . . . . Reactor . | . . . . . Propulsion 12 | 2 4 2 1 3 Treads 2 | . . 2 . . Leg 1 | . . . . 1 Wheel 6 | 2 2 . 1 1 Hover . | . . . . . Flight 3 | . 2 . . 1 Utility 10 | 1 2 1 1 5 Device 6 | . 1 1 1 3 Storage 2 | 1 1 . . . Processor . | . . . . . Hackware . | . . . . . Protection 2 | . . . . 2 Artifact . | . . . . . Weapon 15 | 2 1 2 4 6 Energy Gun 4 | 1 . . 1 2 Energy Cannon 6 | . 1 2 1 2 Ballistic Gun 4 | 1 . . 1 2 Ballistic Cannon . | . . . . . Launcher 1 | . . . 1 . Special Weapon . | . . . . . Impact Weapon . | . . . . . Slashing Weapon . | . . . . . Piercing Weapon . | . . . . . Special Melee Weapon . | . . . . . Unidentified Prototypes 6 | . 1 . 4 1 Parts Lost 24 | . 2 2 2 18 Power 3 | . . . . 3 Propulsion 6 | . 2 . 1 3 Utility 4 | . . . . 4 Weapon 11 | . . 2 1 8 Highest Loss Streak 16 | . 2 1 1 16 To Critical Strikes . | . . . . . Average Backups 18 | . 10 18 23 23 Power 2 | . . 2 3 4 Propulsion 4 | . 3 5 5 5 Utility 8 | . 4 10 12 9 Weapon 2 | . 1 . 1 3 Tool/Special . | . . . . . Unused Backups 19 | . 1 . 5 13 Power 6 | . . . 3 3 Propulsion 2 | . . . . 2 Utility 10 | . . . 2 8 Weapon 1 | . 1 . . . Tool/Special . | . . . . . Average Slot Usage (%) 91 | . 90 91 93 89 Engine 11 | . 14 11 10 8 Wheel 18 | . 18 21 20 15 Flight 1 | . 3 . . . Device 10 | . 1 11 11 20 Storage 14 | . 23 11 11 9 Energy Gun 6 | . 2 . 9 11 Energy Cannon 18 | . 11 27 27 12 Ballistic Gun 8 | . 14 8 2 8 Peak Build Rating 32 | 6 13 18 27 32 Average Rating 18 | 4 9 16 23 26 On Entrance 11 | . 6 12 15 24 Avg Prop Armor Cover (%) . | . . . . . Naked Turns . | . . . . . Heaviest Build 108 | 13 96 101 108 106 Greatest Support 26 | 26 26 20 20 20 Greatest Overweight (x) 31 | . 31 5 10 5 Average Overweight (x) 4 | . 4 4 5 5 Largest Inventory Capacity 25 | 8 25 25 25 25 Average Capacity 23 | 7 21 25 25 25 Most Carried 25 | . 15 25 25 25 Average Carried 18 | . 10 18 22 23 Final Capacity 25 | 8 25 25 25 25 Final Carried 25 | . 15 25 23 16 Class Distribution -------------------- 34% | Mutant 23% | Tank 21% | Gunner 9% | Commander-Gunner 5% | Scavenger-Gunner 3% | Commander-Mutant Dominant Class ---------------- Mutant | -10/Materials Gunner | -9/Materials Gunner | -9/Storage Tank | -8/Materials Resources | -11 -10 -9 -9 -8 ----------- Run | Yrd Mat Mat Sto Mat Matter Collected 900 | 181 250 241 90 138 Remotely . | . . . . . Salvage Created 2264 | . 455 368 733 708 Parts 138 | . 20 29 52 37 Haulers Intercepted 3 | . . 1 1 1 Recyclers Shooed 1 | . 1 . . . Parts Field Recycled . | . . . . . Retrieved Matter . | . . . . . Parts Self-Destructed . | . . . . . Prevented . | . . . . . Parts Restored . | . . . . . Kills | -11 -10 -9 -9 -8 ------- Run | Yrd Mat Mat Sto Mat Combat Hostiles Destroyed 43 | . 7 10 13 13 Guns 13 | . 4 . 1 8 Cannons 30 | . 3 10 12 5 Classes Destroyed 12 | . 7 2 1 2 Worker 2 | . 2 . . . Builder 4 | . 2 . . 2 Tunneler 1 | . 1 . . . Hauler 3 | . . 1 1 1 Recycler 1 | . 1 . . . Watcher 4 | . 1 1 1 1 Swarmer 9 | . 3 4 . 2 Grunt 23 | . 4 5 7 7 Brawler 2 | . . . . 2 Duelist 1 | . . . 1 . Sentry 7 | . . 1 5 1 Hunter 1 | . . . . 1 Best Kill Streak 8 | . 3 8 4 6 Combat Bots Only 6 | . 2 6 4 4 Max Kills in Single Turn 2 | . 1 2 1 2 Gunslinging . | . . . . . Exploded . | . . . . . Melee . | . . . . . Uniques/NPCs Destroyed . | . . . . . Combat | -11 -10 -9 -9 -8 -------- Run | Yrd Mat Mat Sto Mat Hostile Shots Fired 341 | . 49 62 35 195 Missed 68 | . 16 15 10 27 Hits 273 | . 33 47 25 168 Melee 1 | . . . 1 . Projectile 272 | . 33 47 24 168 Critical Strikes 11 | . 1 1 3 6 Damage Taken 3207 | 5 297 490 362 2053 Core 755 | . 57 88 58 552 Absorbed by Shields 147 | . . 36 . 111 Redirected to Shielding 5 | . . . . 5 Core Remaining (%) 80 | 100 77 . 63 . Volleys Fired 147 | . 43 24 25 55 Largest 4 | . 2 4 4 4 Hottest 249 | . 88 224 249 213 Shots Fired 375 | . 85 69 83 138 Gun 168 | . 53 9 21 85 Cannon 207 | . 32 60 62 53 Launcher . | . . . . . Special . | . . . . . Kinetic 91 | . 43 9 4 35 Thermal 256 | . 42 60 62 92 Explosive . | . . . . . Electromagnetic 28 | . . . 17 11 Robot Hit Streak 19 | . 10 19 9 6 Robot Miss Streak 6 | . 4 3 3 6 Penetration Max . | . . . . . Secondary Targets . | . . . . . Shots Hit Robots 210 | . 54 33 50 73 Core Hits 89 | . 18 15 26 30 Critical Kills . | . . . . . Critical Parts Destroyed . | . . . . . Critical Strikes 3 | . . . . 3 Burn 3 | . . . . 3 Melee Attacks . | . . . . . Impact . | . . . . . Slashing . | . . . . . Piercing . | . . . . . Sneak Attacks . | . . . . . Combat Hostiles . | . . . . . Follow-up Attacks . | . . . . . Damage Inflicted 4052 | 12 837 673 1045 1485 Guns 1634 | . 408 79 264 883 Cannons 2386 | . 429 594 761 602 Explosions 20 | . . . 20 . Melee . | . . . . . Ramming 12 | 12 . . . . Kinetic 682 | . 333 79 18 252 Thermal 3001 | . 504 594 781 1122 Explosive . | . . . . . Electromagnetic 357 | . . . 246 111 Impact . | . . . . . Slashing . | . . . . . Piercing . | . . . . . Highest Corruption 1 | . . . . 1 Average Corruption 1 | . . . . 1 Corruption Purged . | . . . . . Corruption Blocked . | . . . . . Effects 3 | . . . . 3 Message Errors 1 | . . . . 1 Matter Fused 1 | . . . . 1 Data Loss (major) 1 | . . . . 1 Overload Shots . | . . . . . Overflow Damage 19 | . 4 . . 15 Projectiles 19 | . 4 . . 15 Explosions . | . . . . . Melee . | . . . . . Knockbacks . | . . . . . Impact . | . . . . . Kinetic . | . . . . . Secondary . | . . . . . Self-Inflicted Damage 5 | 5 . . . . Shots . | . . . . . Rammed 2 | 2 . . . . Targets Rammed 2 | 2 . . . . Kicked . | . . . . . Crushed . | . . . . . Highest Temperature 519 | . 231 519 390 417 Average Temperature 145 | . 78 206 121 170 Received Heat Transfer 1327 | . 78 137 150 962 Effects 11 | . . 8 1 2 Shutdowns 1 | . . 1 . . Energy Bleed 3 | . . 1 1 1 Interference 2 | . . 1 . 1 Matter Decay 2 | . . 2 . . Damage (major) 3 | . . 3 . . Siege Activations . | . . . . . Martial Activations . | . . . . . Shielding Activations . | . . . . . Robots Disrupted . | . . . . . Combat Hostiles . | . . . . . Robots Corrupted . | . . . . . Combat Hostiles . | . . . . . Parts Fried . | . . . . . Impact Corruptions . | . . . . . Robots Melted . | . . . . . Combat Hostiles . | . . . . . Parts Melted 5 | . 1 1 . 3 Heat Transferred 5751 | . 952 1073 1469 2257 Parts Sabotaged . | . . . . . Parts Stolen . | . . . . . Parts Stripped . | . . . . . Power Chain Reactions 2 | . . . 2 . Alert | -11 -10 -9 -9 -8 ------- Run | Yrd Mat Mat Sto Mat Maximum Alert Level 3 | . . . 3 2 Low Security (%) 51 | 100 100 100 11 . Level 1 24 | . . . 10 94 Level 2 22 | . . . 71 5 Level 3 1 | . . . 5 . Level 4 . | . . . . . Level 5 . | . . . . . High Security . | . . . . . Max Security . | . . . . . Peak Influence 718 | . 72 195 718 439 Initial 296 | . . . 73 296 Average 240 | . 16 68 531 307 Influence Increases 2177 | . 212 335 1147 483 Destroy 0b10 Robot/C 1240 | . 140 200 640 260 Destroy 0b10 Robot/NC 80 | . 35 10 15 20 Destroy Leader 304 | . 22 34 184 64 Allied During Kill 245 | . . . 245 . Successful Hack 7 | . . . 7 . Disable Machine 60 | . . 15 30 15 Destroy Structure 16 | . . 1 11 4 Lose Combat Pursuer 225 | . 15 75 15 120 Influence Decreases 1824 | . 212 160 620 832 Entered New Map 508 | . . . 102 406 Time Decay 896 | . 192 140 318 246 Lost Part 240 | . 20 20 20 180 Lost Ally 180 | . . . 180 . Squads Dispatched 14 | . 1 1 11 1 Investigation 3 | . . . 3 . Extermination . | . . . . . Reinforcement 4 | . 1 1 1 1 Assault 1 | . . . 1 . Garrison 6 | . . . 6 . Intercept . | . . . . . Searches Triggered . | . . . . . Construction Impeded . | . . . . . Haulers Reinforced . | . . . . . Active Scanning Responses . | . . . . . Cargo Convoy Interrupts . | . . . . . Stealth | -11 -10 -9 -9 -8 --------- Run | Yrd Mat Mat Sto Mat Distress Signals 2 | . . 1 . 1 Communications Jammed . | . . . . . Distress Signals . | . . . . . Times Spotted 80 | . 11 20 23 26 Peak Tracking Total 6 | . 3 6 5 6 Tactical Retreats 11 | . 1 2 1 7 Traps | -11 -10 -9 -9 -8 ------- Run | Yrd Mat Mat Sto Mat Traps Triggered 3 | . . . 1 2 Indirectly . | . . . . . Trap Hack Attempts . | . . . . . Triggered . | . . . . . Disarmed . | . . . . . Reprogrammed . | . . . . . Reused . | . . . . . Traps Extracted . | . . . . . Installed . | . . . . . Triggered . | . . . . . Machines | -11 -10 -9 -9 -8 ---------- Run | Yrd Mat Mat Sto Mat Machines Disabled 4 | . . 1 2 1 Max in Single Turn 1 | . . 1 1 1 Machines Repaired . | . . . . . Machines Dismantled . | . . . . . Machines Sabotaged . | . . . . . Overloaded Fab Kills . | . . . . . Hacking | -11 -10 -9 -9 -8 --------- Run | Yrd Mat Mat Sto Mat Machines Accessed 6 | . . 1 4 1 Terminals 5 | . . . 4 1 Fabricators . | . . . . . Repair Stations 1 | . . 1 . . Recycling Units . | . . . . . Scanalyzers . | . . . . . Garrison Access . | . . . . . Total Hacks 10 | . . 1 7 2 Successful 4 | . . 1 3 . Failed 6 | . . . 4 2 Catastrophic 1 | . . . 1 . Database Lockouts . | . . . . . Manual 9 | . 1 . 5 3 Terminals 9 | . . . 7 2 Fabricators . | . . . . . Repair Stations 1 | . . 1 . . Recycling Units . | . . . . . Scanalyzers . | . . . . . Garrison Access . | . . . . . Terminal Hacks 2 | . . . 2 . Record 1 | . . . 1 . Open Door 1 | . . . 1 . Fabricator Hacks . | . . . . . Repair Station Hacks 1 | . . 1 . . Scan Component 1 | . . 1 . . Recycling Unit Hacks . | . . . . . Scanalyzer . | . . . . . Garrison Access Hacks . | . . . . . Unauthorized Hacks 1 | . . . 1 . Terminals 1 | . . . 1 . Sabotage 1 | . . . 1 . Fabricators . | . . . . . Repair Stations . | . . . . . Recycling Units . | . . . . . Scanalyzers . | . . . . . Garrison Access . | . . . . . Data Cores Recovered . | . . . . . Used . | . . . . . Hacking Detections 5 | . 1 1 1 2 Full Trace Events 1 | . . . 1 . Feedback Events . | . . . . . Feedback Blocked . | . . . . . Robot Schematics Acquired . | . . . . . Robots Built . | . . . . . Authchips . | . . . . . Time . | . . . . . Total Robot Build Rating . | . . . . . Part Schematics Acquired . | . . . . . Parts Built . | . . . . . Authchips . | . . . . . Time . | . . . . . Total Part Build Rating . | . . . . . Part Studies Acquired . | . . . . . Parts Repaired . | . . . . . Time . | . . . . . Parts Recycled . | . . . . . Recycled Matter . | . . . . . Retrieved Matter . | . . . . . Retrieved Components . | . . . . . Parts Scanalyzed . | . . . . . Part Schematics Acquired . | . . . . . Parts Damaged . | . . . . . Bothacking | -11 -10 -9 -9 -8 ------------ Run | Yrd Mat Mat Sto Mat Used RIF Installer . | . . . . . Robots Hacked . | . . . . . Non-combat . | . . . . . Combat . | . . . . . Robot Hacks Applied . | . . . . . Relay Couplers Released . | . . . . . Fabnet Peak Effective % . | . . . . . Robots Rewired . | . . . . . Allies Hacked . | . . . . . Hacks Repelled . | . . . . . Allies | -11 -10 -9 -9 -8 -------- Run | Yrd Mat Mat Sto Mat Total Allies 10 | . . . 10 . Largest Group 10 | . . . 10 . Highest-Rated Group 88 | . . . 88 . Highest-Rated Ally 16 | . . . 16 . Total Orders . | . . . . . Ally Attacks 97 | . . . 97 . Total Damage 1024 | . . . 1024 . Kills 21 | . . . 21 . Allies Corrupted . | . . . . . Allies Melted . | . . . . . Intel | -11 -10 -9 -9 -8 ------- Run | Yrd Mat Mat Sto Mat Active Infowar (turns) . | . . . . . Robot Analysis Total . | . . . . . Derelict Logs Recovered . | . . . . . Drone Launches . | . . . . . Drone Recoveries . | . . . . . Exploration | -11 -10 -9 -9 -8 ------------- Run | Yrd Mat Mat Sto Mat Turns Passed 2399 | 48 723 390 705 533 Spaces Moved 1163 | 43 340 181 380 219 Core 2 | 1 1 . . . Treads . | . . . . . Legs . | . . . . . Wheels 1153 | 42 331 181 380 219 Hover . | . . . . . Flight 8 | . 8 . . . Fastest Speed 50 | 50 90 140 140 155 Average Speed 154 | 87 166 146 156 155 Slowest Speed 1600 | 90 1600 155 230 155 Overloaded Moves . | . . . . . Propulsion Burnouts . | . . . . . Robots Hopped . | . . . . . Potential Cave-ins . | . . . . . Cave-ins Triggered . | . . . . . Exploration Rate (%) 28 | 3 43 14 59 24 Regions Visited 4 Branch Regions 1 Pre-discovered Areas . | . . . . . Known Exits Taken . | . . . . . Unknown Exits Taken 4 | 1 1 1 1 . Scrap Searched . | . . . . . Spaces Dug . | . . . . . Terrain Destroyed 13 | . 1 . 11 1 Melee . | . . . . . Projectile 3 | . 1 . 1 1 AOE 10 | . . . 10 . Terrain Rammed . | . . . . . Walls Destroyed . | . . . . . Machines Disabled . | . . . . . Actions | -11 -10 -9 -9 -8 --------- Run | Yrd Mat Mat Sto Mat Total 1463 | 50 414 251 435 313 Wait 29 | . . 21 . 8 Move 1159 | 42 339 180 379 219 Hop . | . . . . . Pick Up 53 | . 21 13 11 8 Fast Attach 11 | 6 . . 3 2 Attach 26 | . 5 4 4 13 Detach 3 | . 1 2 . . Swap 14 | . 2 6 2 4 Drop 19 | . 3 1 11 4 Fire 147 | . 43 24 25 55 Melee . | . . . . . Ram 2 | 2 . . . . Kick . | . . . . . Crush . | . . . . . Escape Stasis . | . . . . . Rewire . | . . . . . Trap . | . . . . . Miscellaneous . | . . . . . Route ------- -11/Scrapyard -10/Materials -9/Materials (discovered 2 exits: *Sto x2) -9/Storage -8/Materials History --------- Turn | Location | Event 24 | -11/Scrapyard | Discovered new exit (range 15) 49 | -11/Scrapyard | Entered Materials 300 | -10/Materials | Build established: Mutant 352 | -10/Materials | Discovered new exit (range 16) 772 | -10/Materials | Entered another Materials area 772 | -9/Materials | Evolved 2 slots: Weapon x2 774 | -9/Materials | Discovered new exit (range 7) 1081 | -9/Materials | Discovered new exit (range 9) 1162 | -9/Materials | Entered Storage 1206 | -9/Storage | Assisted by bots powering up and referring to "LRC-V3" 1252 | -9/Storage | Garrison activated, responded to threat 1509 | -9/Storage | Lost 7 allies 1562 | -9/Storage | First assault squad dispatched 1603 | -9/Storage | Garrison activated, responded to threat 1838 | -9/Storage | Discovered new exit (range 14) 1867 | -9/Storage | Entered Materials 1867 | -8/Materials | Evolved 2 slots: Utility x2 2215 | -8/Materials | Build established: Tank 2347 | -8/Materials | Core integrity fell below 50% 2383 | -8/Materials | Core integrity fell below 20% 2400 | -8/Materials | Destroyed by S-10 Pest with Light Assault Rifle Last Messages --------------- 02374_ K-01 Serf collects debris. 02374_ G-47 Trooper overheating. 02376_ G-47 Trooper destroyed. 02377_ K-01 Serf collects debris. 02377_ Lgt. Armor Plating destroyed. 02378_ K-01 Serf collects debris. 02379_ Adv. Beam Cannon destroyed. 02380_ &HRQOXEDKXGKYXFVERALMA E 02381_ K-01 Serf collects debris. 02383_ Overheating: Energy bleed (-25). 02385_ Critical hit (Burn: +37). 02386_ K-01 Serf collects debris. 02387_ Overheating: System interference. 02387_ Heat Sink temporarily disabled. 02387_ K-01 Serf collects debris. 02388_ Ion Cannon destroyed. [Achievement: Hydra] 02390_ K-01 Serf collects debris. 02390_ Imp. Ion Engine destroyed. 02391_ K-01 Serf collects debris. Map ----- +----------------------------------------------------+ | ??????# "?" ?? ????????????????? | | #####?# """ " ? #???????????????? | | # / ?# ? ? #???????????????? | | # "# ? #???????????????? | | # T# """ """ #???????????????? | | # "# """ """ #???????????????? | | #[[! # """ """ #######?????????? | | #[[ + ?????????? | | #[! # ?????????? | | # #?# ??????????? | | #* !#?# ??????????? | | # #?# """ """???????????? | | # ### """ """ ????? | | # + """ """ ????? | | ??###+########## ???? | | ????# #????????# ????? | | ????# #????????# """ ?????? | | ????# #????????# " " """ ?????????? | | ????# #????????# * """ ?????? | | ????# #????????# |%= ?????? | | ????# #????????# ! #?????? | | ????# #???######=%#############???????? | | ????# #???# ss[#???????????????????? | | ????# #???# =k%#???????????????????? | | ????# #???# s #???????????????????? | | ????# #???# @ k #???????????????????? | | ????# #???# #???????????????????? | | ????# #???# = #???????????????????? | | ????# #???#%g% m #???????????????????? | | ????# #???#= #???????????????????? | | ????# #####%! #######?????????????? | | ????# * # #?????????????? | | ????# + """ #?????????????? | | ????# # """ #?????????????? | | ????##########;## # """ #?????????????? | | ?????????##???#?# #? #?????????????? | | ?????????# ?????# #? #?????????????? | | ?????????# """ ## #?? #?????????????? | | ?????????# """ ## #??####?????????????? | | ?????????# """ ## #???????????????????? | | ???###???# """ ## #???????????????????? | | ####!###?# """ ?# #???????????????????? | | # ![%=#?# ??# #???????????????????? | | #* [!*####+#####[#############???????? | | # "" + !!%*![%[[!!= #???????? | | # T" # !#####!########### #???????? | | # "" # #??#%=[ #???????????????? | | # # #??#[!%[ #???????????????? | | ########+##+#### #???????????????? | | ?????# # | #???????????????? | +----------------------------------------------------+ Best States ------------- Heat Dissipation 59 Energy Generation 14 Energy Capacity 280 Matter Stores 300 Matter Capacity 300 Sight Range 16 Terrain Scan Density 10 Armor Coverage 150 Propulsion Shielding 33 Evasion (%) 44 Recoil Reduction 2 Item Schematics ----------------- None Robot Schematics ------------------ None Fabricated ------------ Nothing Repaired ---------- Nothing Studied --------- None Alien Tech Used ----------------- None Achievements -------------- Hydra Significant Disruption Challenges ------------ None Game ------ Seed ZipTransmissionReplica Manual? 0 Play Time 00:47:01 Cumulative 11.1 hours Start 2026.03.12 @ 22:26:00 End 2026.03.12 @ 23:15:11 Sessions 1 Manual Loads 0 Difficulty Rogue Special Mode None Game No. 11 Rogue 11 Adventurer 0 Explorer 0 Win Type - Total 0 Types 0/0/0/0/0/0/0/0/0/0 Lore% 4 Gallery% 13 Achievement% 10 Wizard Run 0 Options --------- Layout 0 ASCII 1 Keyboard 1 Movement Numpad Keybinds 0 Fullscreen 1 Font 16/SmallcapsGlow Map View 75x55 Zoom Use 0% Tactical HUD 1 Map Filters NONE Filters NONE Steam 1 RUN: eeeb3608-775c-46ad-ad32-f6b0d3a60d6b